[Event "Live Chess"]
[Site "Chess.com"]
[Date "2023.05.21"]
[Round "-"]
[White "smoggyrabbit"]
[Black "therealab0ne"]
[Result "1-0"]
[WhiteElo "1755"]
[BlackElo "731"]
[TimeControl "300"]
[EndTime "20:54:40 PDT"]
[Termination "smoggyrabbit won by resignation"]

1. d4 {[%clk 0:04:58.3]} 1... d5 {[%clk 0:04:56.6]} 2. Nf3 {[%clk 0:04:57.3]}
2... e6 {[%clk 0:04:55.1]} 3. e3 {[%clk 0:04:55.8]} 3... c5 {[%clk 0:04:47]} 4.
b3 {[%clk 0:04:53.6]} 4... Nc6 {[%clk 0:04:41.2]} 5. Bd3 {[%clk 0:04:51.6]} 5...
Bd6 {[%clk 0:04:37.3]} 6. O-O {[%clk 0:04:48.8]} 6... Nf6 {[%clk 0:04:35.9]} 7.
Bb2 {[%clk 0:04:47.6]} 7... O-O {[%clk 0:04:10.4]} 8. Nbd2 {[%clk 0:04:45]} 8...
e5 {[%clk 0:04:05.2]} 9. dxe5 {[%clk 0:04:42.5]} 9... Nxe5 {[%clk 0:04:01.8]}
10. Nxe5 {[%clk 0:04:41]} 10... Bxe5 {[%clk 0:04:00.6]} 11. Bxe5 {[%clk
0:04:40.2]} 11... Re8 {[%clk 0:03:50.5]} 12. Bb2 {[%clk 0:04:29.6]} 12... Ne4
{[%clk 0:03:28.3]} 13. Nxe4 {[%clk 0:04:22.7]} 13... dxe4 {[%clk 0:03:27]} 14.
Bc4 {[%clk 0:04:21.5]} 14... Qxd1 {[%clk 0:03:11.3]} 15. Raxd1 {[%clk
0:04:21.4]} 15... b6 {[%clk 0:02:57.4]} 16. Bb5 {[%clk 0:04:15.8]} 1-0

[Event "Live Chess"]
[Site "Chess.com"]
[Date "2023.05.21"]
[Round "-"]
[White "mirandaasilva"]
[Black "Doge_Dandolo"]
[Result "0-1"]
[WhiteElo "1690"]
[BlackElo "1920"]
[TimeControl "300"]
[EndTime "20:55:08 PDT"]
[Termination "Doge_Dandolo won by resignation"]

1. Nf3 {[%clk 0:04:57.4]} 1... Nf6 {[%clk 0:04:58.4]} 2. c4 {[%clk 0:04:55.1]}
2... c5 {[%clk 0:04:56.8]} 3. Nc3 {[%clk 0:04:53]} 3... e6 {[%clk 0:04:55.2]} 4.
d4 {[%clk 0:04:51.5]} 4... cxd4 {[%clk 0:04:53.6]} 5. Nxd4 {[%clk 0:04:51.3]}
5... b6 {[%clk 0:04:52.4]} 6. e3 {[%clk 0:04:47.1]} 6... Bb7 {[%clk 0:04:51.2]}
7. Be2 {[%clk 0:04:45.5]} 7... a6 {[%clk 0:04:49.6]} 8. O-O {[%clk 0:04:44]}
8... d6 {[%clk 0:04:47.8]} 9. b3 {[%clk 0:04:42.7]} 9... Nbd7 {[%clk 0:04:46.3]}
10. Bb2 {[%clk 0:04:41.8]} 10... Qc7 {[%clk 0:04:45.1]} 11. Rc1 {[%clk
0:04:41.1]} 11... Be7 {[%clk 0:04:44]} 12. Bf3 {[%clk 0:04:38]} 12... O-O {[%clk
0:04:41.2]} 13. Bxb7 {[%clk 0:04:35.8]} 13... Qxb7 {[%clk 0:04:39.8]} 14. Nf3
{[%clk 0:04:35.7]} 14... Rfd8 {[%clk 0:04:37.8]} 15. Qd3 {[%clk 0:04:34.9]}
15... Nc5 {[%clk 0:04:33.9]} 16. Qe2 {[%clk 0:04:32.4]} 16... Rac8 {[%clk
0:04:32.3]} 17. Rfd1 {[%clk 0:04:29.8]} 17... Bf8 {[%clk 0:04:29.5]} 18. Rd2
{[%clk 0:04:26.5]} 18... b5 {[%clk 0:04:26.2]} 19. cxb5 {[%clk 0:04:22.7]} 19...
axb5 {[%clk 0:04:21.5]} 20. Qxb5 {[%clk 0:04:20]} 20... Qxb5 {[%clk 0:04:16.1]}
21. Nxb5 {[%clk 0:04:19.9]} 21... Nce4 {[%clk 0:04:12.8]} 22. Rxc8 {[%clk
0:04:16.7]} 22... Rxc8 {[%clk 0:04:09.6]} 23. Rd1 {[%clk 0:03:48]} 23... Rc2
{[%clk 0:04:06.4]} 24. Ba3 {[%clk 0:03:36.1]} 24... d5 {[%clk 0:03:48]} 25. Bxf8
{[%clk 0:03:19.9]} 25... Kxf8 {[%clk 0:03:46.5]} 26. a4 {[%clk 0:03:12.1]} 26...
Nxf2 {[%clk 0:03:42.1]} 27. Ra1 {[%clk 0:03:10]} 27... N2e4 {[%clk 0:03:33.2]}
28. a5 {[%clk 0:03:06.4]} 28... Nc5 {[%clk 0:03:31.2]} 29. a6 {[%clk 0:03:01.7]}
29... Nxa6 {[%clk 0:03:29.9]} 30. Rxa6 {[%clk 0:02:59.5]} 30... Rb2 {[%clk
0:03:29.3]} 31. Nbd4 {[%clk 0:02:55.1]} 31... Ne4 {[%clk 0:03:24]} 32. Ra1
{[%clk 0:02:45.9]} 32... Ke7 {[%clk 0:03:20]} 33. b4 {[%clk 0:02:30.6]} 33...
Kd6 {[%clk 0:03:12]} 34. b5 {[%clk 0:02:26.3]} 34... e5 {[%clk 0:03:09.1]} 35.
Ra6+ {[%clk 0:02:21.4]} 35... Kc5 {[%clk 0:03:06.1]} 36. Rc6+ {[%clk 0:01:28.4]}
36... Kb4 {[%clk 0:02:58.2]} 37. Nc2+ {[%clk 0:01:13.2]} 37... Kxb5 {[%clk
0:02:55.1]} 38. Rc8 {[%clk 0:01:10.2]} 38... Rb1+ {[%clk 0:02:49.8]} 39. Nfe1
{[%clk 0:01:08.3]} 39... d4 {[%clk 0:02:45.1]} 40. Rb8+ {[%clk 0:01:05.8]} 40...
Kc4 {[%clk 0:02:42.7]} 41. Rxb1 {[%clk 0:01:05.7]} 41... d3 {[%clk 0:02:40.5]}
42. Na3+ {[%clk 0:01:00]} 42... Kc3 {[%clk 0:02:38.5]} 43. Nb5+ {[%clk 0:00:50]}
43... Kd2 {[%clk 0:02:35.2]} 44. Kf1 {[%clk 0:00:41.2]} 44... Kxe3 {[%clk
0:02:33]} 45. Rb3 {[%clk 0:00:38.1]} 45... Nd2+ {[%clk 0:02:30.5]} 46. Kg1
{[%clk 0:00:36.4]} 46... Nxb3 {[%clk 0:02:29]} 47. Nxd3 {[%clk 0:00:33.6]} 47...
Kxd3 {[%clk 0:02:26.6]} 48. Kf2 {[%clk 0:00:33.5]} 48... e4 {[%clk 0:02:23.6]}
49. Nd6 {[%clk 0:00:32.4]} 49... f6 {[%clk 0:02:20.3]} 50. Ke1 {[%clk
0:00:32.3]} 50... g6 {[%clk 0:02:15.4]} 51. Ne8 {[%clk 0:00:30.9]} 51... f5
{[%clk 0:02:14.1]} 52. Nd6 {[%clk 0:00:30.2]} 52... f4 {[%clk 0:02:10.4]} 53. h4
{[%clk 0:00:28.6]} 53... h6 {[%clk 0:02:07.1]} 54. Nf7 {[%clk 0:00:28.5]} 54...
g5 {[%clk 0:02:02.9]} 55. hxg5 {[%clk 0:00:28.4]} 55... hxg5 {[%clk 0:02:01.6]}
56. Nxg5 {[%clk 0:00:28.3]} 56... Nd4 {[%clk 0:01:57.3]} 57. Nh3 {[%clk
0:00:22.3]} 57... Ke3 {[%clk 0:01:53.6]} 58. Ng5 {[%clk 0:00:19.5]} 58... Nf5
{[%clk 0:01:48.5]} 59. Nh3 {[%clk 0:00:17.8]} 59... Nh4 {[%clk 0:01:46.3]} 60.
Ng5 {[%clk 0:00:17.2]} 60... Nxg2+ {[%clk 0:01:44.4]} 61. Kf1 {[%clk 0:00:17.1]}
61... Nh4 {[%clk 0:01:42.8]} 62. Nh3 {[%clk 0:00:16.5]} 62... Nf3 {[%clk
0:01:41.2]} 63. Ng1 {[%clk 0:00:16.4]} 63... Nxg1 {[%clk 0:01:39.9]} 64. Ke1
{[%clk 0:00:16.3]} 64... Nf3+ {[%clk 0:01:38.4]} 0-1

[Event "Live Chess"]
[Site "Chess.com"]
[Date "2023.05.21"]
[Round "-"]
[White "Singapourfeuj"]
[Black "Pablo_dmp"]
[Result "1-0"]
[WhiteElo "2171"]
[BlackElo "1850"]
[TimeControl "300"]
[EndTime "20:55:10 PDT"]
[Termination "Singapourfeuj won by checkmate"]

1. d4 {[%clk 0:04:59.3]} 1... Nf6 {[%clk 0:04:57.7]} 2. Nf3 {[%clk 0:04:58]}
2... e6 {[%clk 0:04:54.3]} 3. g3 {[%clk 0:04:56.9]} 3... b6 {[%clk 0:04:52.3]}
4. Bg2 {[%clk 0:04:56.1]} 4... Bb7 {[%clk 0:04:50.8]} 5. O-O {[%clk 0:04:55.3]}
5... g6 {[%clk 0:04:47.1]} 6. c4 {[%clk 0:04:54.3]} 6... Bg7 {[%clk 0:04:43.8]}
7. Nc3 {[%clk 0:04:53.6]} 7... d6 {[%clk 0:04:39.3]} 8. Re1 {[%clk 0:04:51.8]}
8... O-O {[%clk 0:04:37]} 9. e4 {[%clk 0:04:50.7]} 9... Nbd7 {[%clk 0:04:32.8]}
10. Bg5 {[%clk 0:04:49.3]} 10... h6 {[%clk 0:04:30.3]} 11. Be3 {[%clk
0:04:47.3]} 11... e5 {[%clk 0:04:25.5]} 12. d5 {[%clk 0:04:41.5]} 12... Ng4
{[%clk 0:04:23.7]} 13. Bd2 {[%clk 0:04:39.3]} 13... f5 {[%clk 0:04:15.7]} 14.
exf5 {[%clk 0:04:37.9]} 14... gxf5 {[%clk 0:04:15.6]} 15. h3 {[%clk 0:04:36.8]}
15... Ngf6 {[%clk 0:04:08.5]} 16. Nh4 {[%clk 0:04:35.8]} 16... Qe8 {[%clk
0:04:00.6]} 17. Nxf5 {[%clk 0:04:32.3]} 17... Nc5 {[%clk 0:03:57.9]} 18. Nxg7
{[%clk 0:04:29.6]} 18... Kxg7 {[%clk 0:03:56.3]} 19. f4 {[%clk 0:04:23.5]} 19...
e4 {[%clk 0:03:48.8]} 20. b4 {[%clk 0:04:19.2]} 20... Nd3 {[%clk 0:03:46.3]} 21.
Rxe4 {[%clk 0:04:17.6]} 21... Nxe4 {[%clk 0:03:44.4]} 22. Nxe4 {[%clk
0:04:16.6]} 22... Qg6 {[%clk 0:03:34.5]} 23. Bc3+ {[%clk 0:04:14.6]} 23... Kg8
{[%clk 0:03:30.7]} 24. Qxd3 {[%clk 0:04:13.4]} 24... Rae8 {[%clk 0:03:25.6]} 25.
Re1 {[%clk 0:04:11.7]} 25... Bc8 {[%clk 0:03:22.2]} 26. Qd4 {[%clk 0:04:10.4]}
26... Qh7 {[%clk 0:03:16.8]} 27. Nf6+ {[%clk 0:04:08.1]} 27... Rxf6 {[%clk
0:03:15]} 28. Rxe8+ {[%clk 0:04:06.8]} 28... Kf7 {[%clk 0:03:11.8]} 29. Rxc8
{[%clk 0:04:03.5]} 29... Rg6 {[%clk 0:03:07]} 30. Rxc7+ {[%clk 0:04:01.9]} 30...
Kg8 {[%clk 0:03:06.9]} 31. Rxh7 {[%clk 0:04:00.5]} 31... Rf6 {[%clk 0:03:06.4]}
32. Qxf6 {[%clk 0:03:54.1]} 32... h5 {[%clk 0:03:06.3]} 33. Qf7# {[%clk
0:03:53.2]} 1-0

[Event "Live Chess"]
[Site "Chess.com"]
[Date "2023.05.21"]
[Round "-"]
[White "Tushinskiy"]
[Black "Biranidun"]
[Result "0-1"]
[WhiteElo "2213"]
[BlackElo "2528"]
[TimeControl "300"]
[EndTime "20:55:41 PDT"]
[Termination "Biranidun won by resignation"]

1. d4 {[%clk 0:04:50]} 1... Nf6 {[%clk 0:04:59]} 2. c3 {[%clk 0:04:49.9]} 2...
g6 {[%clk 0:04:58.1]} 3. Nf3 {[%clk 0:04:48.1]} 3... Bg7 {[%clk 0:04:57.5]} 4.
Bg5 {[%clk 0:04:47.5]} 4... O-O {[%clk 0:04:56.8]} 5. Nbd2 {[%clk 0:04:45.9]}
5... d6 {[%clk 0:04:56.5]} 6. e4 {[%clk 0:04:34.9]} 6... c5 {[%clk 0:04:55.9]}
7. d5 {[%clk 0:04:34.1]} 7... h6 {[%clk 0:04:54.4]} 8. Bh4 {[%clk 0:04:33.1]}
8... e6 {[%clk 0:04:54]} 9. dxe6 {[%clk 0:04:29.5]} 9... Bxe6 {[%clk 0:04:53.9]}
10. Be2 {[%clk 0:04:28.4]} 10... Nc6 {[%clk 0:04:53.4]} 11. O-O {[%clk
0:04:27.5]} 11... Qc7 {[%clk 0:04:52.7]} 12. Qc2 {[%clk 0:04:25.7]} 12... Rfe8
{[%clk 0:04:51.7]} 13. Rad1 {[%clk 0:04:24.3]} 13... a6 {[%clk 0:04:50.5]} 14.
Bg3 {[%clk 0:04:19.2]} 14... Nh5 {[%clk 0:04:49]} 15. Rfe1 {[%clk 0:04:17.9]}
15... b5 {[%clk 0:04:46.8]} 16. Nf1 {[%clk 0:04:13.1]} 16... Nxg3 {[%clk
0:04:44.3]} 17. hxg3 {[%clk 0:04:12.1]} 17... Ne7 {[%clk 0:04:36.7]} 18. Ne3
{[%clk 0:04:10.7]} 18... Rad8 {[%clk 0:04:35.6]} 19. a4 {[%clk 0:04:06.4]} 19...
Qb7 {[%clk 0:04:31]} 20. axb5 {[%clk 0:04:02.3]} 20... axb5 {[%clk 0:04:30.9]}
21. Rd2 {[%clk 0:03:58.2]} 21... d5 {[%clk 0:04:27.8]} 22. exd5 {[%clk
0:03:55.1]} 22... Nxd5 {[%clk 0:04:26.9]} 23. Nxd5 {[%clk 0:03:54.4]} 23... Rxd5
{[%clk 0:04:25.5]} 24. Rxd5 {[%clk 0:03:52.7]} 24... Bxd5 {[%clk 0:04:23.7]} 25.
Bf1 {[%clk 0:03:43.8]} 25... Rxe1 {[%clk 0:04:19.8]} 26. Nxe1 {[%clk 0:03:43.7]}
26... b4 {[%clk 0:04:11.5]} 27. Nd3 {[%clk 0:03:32.3]} 27... bxc3 {[%clk
0:04:01.7]} 28. bxc3 {[%clk 0:03:32.2]} 28... c4 {[%clk 0:03:53.9]} 29. Nb4
{[%clk 0:03:30.6]} 29... Be6 {[%clk 0:03:51.5]} 30. Qd2 {[%clk 0:03:24.2]} 30...
Qc7 {[%clk 0:03:43.3]} 31. Nc2 {[%clk 0:03:18.5]} 31... Qc5 {[%clk 0:03:31.6]}
32. Ne3 {[%clk 0:03:12.5]} 32... Kh7 {[%clk 0:03:26.6]} 33. Be2 {[%clk
0:03:04.6]} 33... h5 {[%clk 0:03:25.2]} 34. g4 {[%clk 0:02:55.2]} 34... h4
{[%clk 0:03:22.4]} 35. Bf1 {[%clk 0:02:46.6]} 35... Be5 {[%clk 0:03:19.7]} 36.
Be2 {[%clk 0:02:37.5]} 36... Kg7 {[%clk 0:03:18.5]} 37. Bf1 {[%clk 0:02:35.1]}
37... Qb5 {[%clk 0:03:10.4]} 38. Qe1 {[%clk 0:02:25.8]} 38... Bf6 {[%clk
0:03:00.3]} 39. Qe2 {[%clk 0:02:19.8]} 39... Bxc3 {[%clk 0:02:54.8]} 40. Nxc4
{[%clk 0:02:17.4]} 40... Qg5 {[%clk 0:02:48.7]} 41. Ne3 {[%clk 0:02:10.6]} 41...
Be5 {[%clk 0:02:46.5]} 42. Qb5 {[%clk 0:02:04.4]} 42... Qf4 {[%clk 0:02:43]} 43.
Bc4 {[%clk 0:01:58.8]} 43... Bc8 {[%clk 0:01:38.4]} 44. Qc5 {[%clk 0:01:38]}
44... Bb7 {[%clk 0:01:32.5]} 45. Qe7 {[%clk 0:01:29.9]} 45... Be4 {[%clk
0:00:56.3]} 46. Bxf7 {[%clk 0:01:25.1]} 46... Qh2+ {[%clk 0:00:52.7]} 47. Kf1
{[%clk 0:01:23.3]} 47... Bd3+ {[%clk 0:00:52.6]} 48. Ke1 {[%clk 0:01:22.5]}
48... Bc3+ {[%clk 0:00:52.5]} 49. Kd1 {[%clk 0:01:17.1]} 49... Qg1+ {[%clk
0:00:52.1]} 0-1

[Event "Live Chess"]
[Site "Chess.com"]
[Date "2023.05.21"]
[Round "-"]
[White "ViktorTheCoolBoy"]
[Black "chessfiction"]
[Result "0-1"]
[WhiteElo "2491"]
[BlackElo "2349"]
[TimeControl "300"]
[EndTime "20:57:59 PDT"]
[Termination "chessfiction won by checkmate"]

1. e4 {[%clk 0:04:58.7]} 1... e6 {[%clk 0:04:58.5]} 2. d4 {[%clk 0:04:56.8]}
2... d5 {[%clk 0:04:58.4]} 3. e5 {[%clk 0:04:55.8]} 3... c5 {[%clk 0:04:53.5]}
4. c3 {[%clk 0:04:54.5]} 4... Nc6 {[%clk 0:04:53.1]} 5. Nf3 {[%clk 0:04:51.1]}
5... Qb6 {[%clk 0:04:52.5]} 6. Bd3 {[%clk 0:04:49.4]} 6... cxd4 {[%clk
0:04:47.5]} 7. O-O {[%clk 0:04:48.1]} 7... Bd7 {[%clk 0:04:42.9]} 8. Re1 {[%clk
0:04:45.2]} 8... dxc3 {[%clk 0:04:40.5]} 9. bxc3 {[%clk 0:04:43.3]} 9... Bc5
{[%clk 0:04:38]} 10. Qe2 {[%clk 0:04:39.8]} 10... Nge7 {[%clk 0:04:36.6]} 11. h4
{[%clk 0:04:38]} 11... Nf5 {[%clk 0:04:27.4]} 12. a4 {[%clk 0:04:32.9]} 12...
Nce7 {[%clk 0:04:24.4]} 13. a5 {[%clk 0:04:30.7]} 13... Qc7 {[%clk 0:04:20.4]}
14. Ba3 {[%clk 0:04:29.3]} 14... h5 {[%clk 0:04:14.6]} 15. Nbd2 {[%clk
0:04:23.9]} 15... g6 {[%clk 0:03:13.5]} 16. c4 {[%clk 0:04:20.5]} 16... Bxa3
{[%clk 0:03:07.2]} 17. Rxa3 {[%clk 0:04:18.9]} 17... Bc6 {[%clk 0:03:03.4]} 18.
cxd5 {[%clk 0:04:08.6]} 18... Nxd5 {[%clk 0:03:02.5]} 19. Bxf5 {[%clk
0:04:02.1]} 19... gxf5 {[%clk 0:03:02.4]} 20. Nc4 {[%clk 0:03:59.7]} 20... O-O-O
{[%clk 0:03:00.8]} 21. Rc1 {[%clk 0:03:49.2]} 21... Rhg8 {[%clk 0:02:57.8]} 22.
Nd6+ {[%clk 0:03:39.1]} 22... Rxd6 {[%clk 0:02:54.1]} 23. exd6 {[%clk
0:03:38.5]} 23... Qxd6 {[%clk 0:02:53.9]} 24. a6 {[%clk 0:03:36.6]} 24... Qxa3
{[%clk 0:02:49.6]} 25. axb7+ {[%clk 0:03:32.8]} 25... Kxb7 {[%clk 0:02:46]} 26.
Rb1+ {[%clk 0:03:30.7]} 26... Ka8 {[%clk 0:02:26.4]} 27. Qe5 {[%clk 0:03:24.3]}
27... Bb7 {[%clk 0:01:47.4]} 28. Kh1 {[%clk 0:03:21.3]} 28... Nb6 {[%clk
0:01:42.9]} 29. Ng5 {[%clk 0:03:12.4]} 29... Rxg5 {[%clk 0:01:33.2]} 30. hxg5
{[%clk 0:03:08.9]} 30... Qh3+ {[%clk 0:01:31.5]} 31. Qh2 {[%clk 0:03:08.5]}
31... Bxg2+ {[%clk 0:01:27.7]} 32. Kg1 {[%clk 0:03:07.9]} 32... Qxh2+ {[%clk
0:01:21.8]} 33. Kxh2 {[%clk 0:03:07.8]} 33... Be4 {[%clk 0:01:21.2]} 34. Kg3
{[%clk 0:03:04.5]} 34... Bxb1 {[%clk 0:01:19.4]} 35. Kh4 {[%clk 0:03:03.8]}
35... a5 {[%clk 0:01:17.8]} 36. Kxh5 {[%clk 0:03:02.3]} 36... a4 {[%clk
0:01:17.3]} 37. Kh6 {[%clk 0:03:01.7]} 37... a3 {[%clk 0:01:16.6]} 38. Kg7
{[%clk 0:03:01.2]} 38... a2 {[%clk 0:01:15.9]} 39. Kxf7 {[%clk 0:03:00.8]} 39...
a1=Q {[%clk 0:01:15.3]} 40. g6 {[%clk 0:03:00.4]} 40... Qh8 {[%clk 0:01:06.9]}
41. g7 {[%clk 0:02:59.2]} 41... Qh7 {[%clk 0:01:06.1]} 42. Kf8 {[%clk
0:02:57.3]} 42... Nd7+ {[%clk 0:01:04.8]} 43. Kf7 {[%clk 0:02:56.7]} 43... e5
{[%clk 0:01:01.7]} 44. f4 {[%clk 0:02:53.8]} 44... Ba2+ {[%clk 0:01:00.7]} 45.
Ke8 {[%clk 0:02:50.4]} 45... Qxg7 {[%clk 0:00:59.2]} 46. fxe5 {[%clk 0:02:49]}
46... Qxe5+ {[%clk 0:00:55.1]} 47. Kxd7 {[%clk 0:02:47.1]} 47... f4 {[%clk
0:00:53.7]} 48. Kc8 {[%clk 0:02:44.6]} 48... f3 {[%clk 0:00:53.6]} 49. Kd7
{[%clk 0:02:43.7]} 49... f2 {[%clk 0:00:53.1]} 50. Kc8 {[%clk 0:02:43.6]} 50...
f1=Q {[%clk 0:00:52.4]} 51. Kd7 {[%clk 0:02:42.5]} 51... Qf7+ {[%clk 0:00:51.4]}
52. Kc8 {[%clk 0:02:41.7]} 52... Qec7# {[%clk 0:00:50.3]} 0-1

[Event "Live Chess"]
[Site "Chess.com"]
[Date "2023.05.21"]
[Round "-"]
[White "ExIsambard"]
[Black "yarek"]
[Result "1-0"]
[WhiteElo "1925"]
[BlackElo "1874"]
[TimeControl "300"]
[EndTime "20:58:45 PDT"]
[Termination "ExIsambard won on time"]

1. d4 {[%clk 0:04:58.6]} 1... g6 {[%clk 0:04:58.7]} 2. Nf3 {[%clk 0:04:57.1]}
2... Bg7 {[%clk 0:04:56.7]} 3. Bg5 {[%clk 0:04:56.3]} 3... h6 {[%clk 0:04:53.4]}
4. Bh4 {[%clk 0:04:54.2]} 4... g5 {[%clk 0:04:52.1]} 5. Bg3 {[%clk 0:04:53.3]}
5... d5 {[%clk 0:04:41.4]} 6. e3 {[%clk 0:04:52.3]} 6... Bg4 {[%clk 0:04:38.9]}
7. Nbd2 {[%clk 0:04:50.7]} 7... Nf6 {[%clk 0:04:29.9]} 8. c3 {[%clk 0:04:49.1]}
8... e6 {[%clk 0:04:28.4]} 9. Bd3 {[%clk 0:04:46.6]} 9... Nbd7 {[%clk
0:04:23.6]} 10. h3 {[%clk 0:04:42.6]} 10... Bxf3 {[%clk 0:04:21.6]} 11. Nxf3
{[%clk 0:04:41.5]} 11... c5 {[%clk 0:04:20]} 12. Qe2 {[%clk 0:04:39.3]} 12... c4
{[%clk 0:03:57.4]} 13. Bc2 {[%clk 0:04:37.4]} 13... b5 {[%clk 0:03:55.6]} 14.
Be5 {[%clk 0:04:28.3]} 14... Nxe5 {[%clk 0:03:46.1]} 15. Nxe5 {[%clk 0:04:26.6]}
15... Qd6 {[%clk 0:03:33.7]} 16. O-O {[%clk 0:04:14.3]} 16... h5 {[%clk
0:03:19.3]} 17. e4 {[%clk 0:04:10.6]} 17... g4 {[%clk 0:02:57.9]} 18. h4 {[%clk
0:04:08.7]} 18... O-O {[%clk 0:02:27.2]} 19. Rae1 {[%clk 0:04:04.1]} 19... b4
{[%clk 0:02:12.9]} 20. Qe3 {[%clk 0:03:50.8]} 20... Nh7 {[%clk 0:01:54]} 21.
exd5 {[%clk 0:03:42.3]} 21... exd5 {[%clk 0:01:50.4]} 22. Qg5 {[%clk 0:02:53]}
22... Qh6 {[%clk 0:01:23.9]} 23. Bxh7+ {[%clk 0:02:47.6]} 23... Kxh7 {[%clk
0:01:20.6]} 24. Qf5+ {[%clk 0:02:43.2]} 24... Kg8 {[%clk 0:01:15.9]} 25. Nd7
{[%clk 0:02:21.6]} 25... Rfd8 {[%clk 0:01:10.6]} 26. Re7 {[%clk 0:02:13.7]}
26... Qg6 {[%clk 0:01:00.4]} 27. Qxd5 {[%clk 0:01:52.2]} 27... Bf6 {[%clk
0:00:57.7]} 28. Nxf6+ {[%clk 0:01:50.1]} 28... Qxf6 {[%clk 0:00:57.2]} 29. Rd7
{[%clk 0:01:42.1]} 29... Rxd7 {[%clk 0:00:53.1]} 30. Qxd7 {[%clk 0:01:41]} 30...
bxc3 {[%clk 0:00:48.4]} 31. bxc3 {[%clk 0:01:39.9]} 31... Qxh4 {[%clk
0:00:45.7]} 32. Re1 {[%clk 0:01:38.2]} 32... g3 {[%clk 0:00:40.1]} 33. fxg3
{[%clk 0:01:30.1]} 33... Qxg3 {[%clk 0:00:40]} 34. Re8+ {[%clk 0:01:28.6]} 34...
Rxe8 {[%clk 0:00:36.9]} 35. Qxe8+ {[%clk 0:01:27.4]} 35... Kg7 {[%clk
0:00:36.2]} 36. Qe2 {[%clk 0:01:12.5]} 36... Qxc3 {[%clk 0:00:30.9]} 37. Qe5+
{[%clk 0:01:01.5]} 37... Kg6 {[%clk 0:00:28.1]} 38. Qe4+ {[%clk 0:01:00.3]}
38... Kg7 {[%clk 0:00:26.4]} 39. d5 {[%clk 0:00:48.6]} 39... Qd3 {[%clk
0:00:23.2]} 40. Qe5+ {[%clk 0:00:44.9]} 40... f6 {[%clk 0:00:20.8]} 41. Qe7+
{[%clk 0:00:43.3]} 41... Kg6 {[%clk 0:00:18.9]} 42. d6 {[%clk 0:00:42.6]} 42...
Qd4+ {[%clk 0:00:16.2]} 43. Kf1 {[%clk 0:00:38.6]} 43... Qf4+ {[%clk 0:00:13.2]}
44. Ke1 {[%clk 0:00:34.1]} 44... Qc1+ {[%clk 0:00:11.9]} 45. Kf2 {[%clk
0:00:32.1]} 45... Qd2+ {[%clk 0:00:10.4]} 46. Kf3 {[%clk 0:00:31]} 46... Qd3+
{[%clk 0:00:08.2]} 47. Kf4 {[%clk 0:00:25.7]} 47... Qd4+ {[%clk 0:00:07.2]} 48.
Qe4+ {[%clk 0:00:24.1]} 48... Qxe4+ {[%clk 0:00:05.2]} 49. Kxe4 {[%clk
0:00:23.9]} 49... Kf7 {[%clk 0:00:04.4]} 50. Kd4 {[%clk 0:00:22.8]} 50... Ke6
{[%clk 0:00:02.7]} 51. Kxc4 {[%clk 0:00:21.9]} 51... Kxd6 {[%clk 0:00:01.8]} 52.
Kd4 {[%clk 0:00:21.2]} 52... f5 {[%clk 0:00:00.2]} 53. Ke3 {[%clk 0:00:20.3]}
1-0

[Event "Live Chess"]
[Site "Chess.com"]
[Date "2023.05.21"]
[Round "-"]
[White "therealab0ne"]
[Black "raminguy"]
[Result "1-0"]
[WhiteElo "747"]
[BlackElo "1931"]
[TimeControl "300"]
[EndTime "20:59:07 PDT"]
[Termination "therealab0ne won - game abandoned"]

1. e4 {[%clk 0:04:58.7]} 1... e5 {[%clk 0:04:58.9]} 2. Bc4 {[%clk 0:04:57.6]}
2... Nc6 {[%clk 0:04:57.3]} 3. Nc3 {[%clk 0:04:55.3]} 3... Nf6 {[%clk
0:04:55.3]} 4. d3 {[%clk 0:04:54.2]} 4... Na5 {[%clk 0:04:53.9]} 5. Bb3 {[%clk
0:04:35]} 5... Nxb3 {[%clk 0:04:51.8]} 6. axb3 {[%clk 0:04:34.1]} 6... Bc5
{[%clk 0:04:50.4]} 7. f4 {[%clk 0:04:22]} 7... d6 {[%clk 0:04:47.4]} 8. Nf3
{[%clk 0:03:57.5]} 8... Bg4 {[%clk 0:04:36.9]} 9. f5 {[%clk 0:03:22.2]} 9... O-O
{[%clk 0:04:32.2]} 10. h3 {[%clk 0:03:20.9]} 10... Bxf3 {[%clk 0:04:30.3]} 11.
Qxf3 {[%clk 0:03:19.2]} 11... c6 {[%clk 0:04:27.8]} 12. Be3 {[%clk 0:02:54.6]}
12... Bxe3 {[%clk 0:04:25.7]} 13. Qxe3 {[%clk 0:02:53.6]} 13... d5 {[%clk
0:04:24.2]} 14. exd5 {[%clk 0:02:52.7]} 14... cxd5 {[%clk 0:04:23.2]} 15. Qxe5
{[%clk 0:02:49.8]} 15... Re8 {[%clk 0:04:21.9]} 16. Qxe8+ {[%clk 0:02:37.8]}
16... Qxe8+ {[%clk 0:04:21.8]} 17. Kd2 {[%clk 0:02:34.2]} 17... Qe5 {[%clk
0:04:20.7]} 18. Rhf1 {[%clk 0:02:16.8]} 18... d4 {[%clk 0:04:18.8]} 19. Ne4
{[%clk 0:02:09.9]} 1-0